Cogmind - Beta 14 @@@ ROGUE MODE // 2024.08.30 @ 05:09:55 Player: MOPO3 Result: Destroyed by G-47 Trooper with Particle Gun Performance ------------- Evolutions (3) 1500 Regions Visited (8) 1600 Robots Destroyed (88) 440 Value Destroyed (2410) 2410 Prototype IDs (3) 60 Alien Tech Used (0) 0 Bonus (631) 631 TOTAL SCORE: 6641 Bonus ------- Follower Combat Kills 62 Entered DSFs 500 Aligned with FarCom 300 Friendly Fire -231 Cogmind --------- Core Integrity 0/700 Matter 209/300 Energy 95/100 System Corruption 0% Temperature Cool (18) Movement Core (1400) Ox27 Location -7/DSF Parts ------- > --- POWER (1) -------- (None) > --- PROPULSION (5) --- (None) > --- UTILITY (5) ------ Huge Storage Unit Improved Signal Interpreter > --- WEAPON (2) ------- Katana > --- INVENTORY (25) --- Heavy Ion Engine Deuterium Engine Deuterium Engine Aluminum Leg Aluminum Leg Aluminum Leg Aluminum Leg Structural Scanner Sensor Array Improved Signal Interpreter Improved Signal Interpreter ECM Suite Medium Armor Plating Medium Armor Plating Hardened Medium Armor Plating Hardlight Generator Gauss Cannon Gauss Cannon Gauss Cannon Rocket Launcher Mini Grenade Launcher Missile Launcher Missile Launcher Missile Launcher Missile Launcher Peak State ------------ > --- POWER ------------ Deuterium Engine > --- PROPULSION ------- Aluminum Leg Carbon-fiber Leg Carbon-fiber Leg Carbon-fiber Leg Carbon-fiber Leg > --- UTILITY ---------- Huge Storage Unit Improved Signal Interpreter Hardened Medium Armor Plating Improved Shield Generator Hacking Suite > --- WEAPON ----------- Gauss Cannon Gauss Cannon > --- INVENTORY -------- Heavy Ion Engine Deuterium Engine Deuterium Engine Aluminum Leg Aluminum Leg Aluminum Leg Aluminum Leg Structural Scanner Sensor Array Improved Signal Interpreter Improved Signal Interpreter ECM Suite Hardlight Generator Gauss Cannon Gauss Cannon Rocket Launcher Mini Grenade Launcher Missile Launcher Missile Launcher Missile Launcher Missile Launcher Katana [Rating: 43] Favorites ----------- Power Heavy Ion Engine Engine Heavy Ion Engine Power Core Light Nuclear Core Propulsion Aluminum Leg Treads Light Treads Leg Aluminum Leg Flight Unit Improved Flight Unit Utility Huge Storage Unit Device Sensor Array Storage Huge Storage Unit Processor Improved Signal Interpreter Hackware Hacking Suite Protection Light Armor Plating Weapon Minigun Energy Gun EM Pulse Gun Ballistic Gun Minigun Ballistic Cannon Gauss Cannon Slashing Weapon Katana Special Melee Weapon Datajack Build | -11 -10 -9 -9 -9 -8 -8 -7 -7 ------- Run | Yrd Mat Mat Min Exi Min Mat Fac DSF Slots Evolved 6 | . . 2 . . . 2 2 . Power . | . . . . . . . . . Propulsion 3 | . . 1 . . . 1 1 . Utility 3 | . . 1 . . . 1 1 . Weapon . | . . . . . . . . . Parts Attached 65 | 6 12 16 3 2 3 16 2 5 Power 6 | 1 2 2 . . . 1 . . Engine 5 | 1 1 2 . . . 1 . . Core 1 | . 1 . . . . . . . Reactor . | . . . . . . . . . Propulsion 24 | 2 3 3 2 . 2 10 1 1 Treads 2 | 2 . . . . . . . . Leg 21 | . 3 3 2 . 2 9 1 1 Wheel . | . . . . . . . . . Hover . | . . . . . . . . . Flight 1 | . . . . . . 1 . . Utility 11 | 1 3 1 . 2 1 2 1 . Device 4 | . 1 . . 2 . 1 . . Storage 3 | 1 2 . . . . . . . Processor 1 | . . 1 . . . . . . Hackware 1 | . . . . . . 1 . . Protection 2 | . . . . . 1 . 1 . Artifact . | . . . . . . . . . Weapon 24 | 2 4 10 1 . . 3 . 4 Energy Gun 2 | . 2 . . . . . . . Energy Cannon . | . . . . . . . . . Ballistic Gun 14 | 2 2 6 1 . . 2 . 1 Ballistic Cannon 2 | . . . . . . . . 2 Launcher . | . . . . . . . . . Special Weapon . | . . . . . . . . . Impact Weapon . | . . . . . . . . . Slashing Weapon 2 | . . . . . . 1 . 1 Piercing Weapon . | . . . . . . . . . Special Melee Weapon 4 | . . 4 . . . . . . Unidentified Prototypes 3 | . . 1 . 1 . 1 . . Parts Lost 19 | . 4 2 . . . 3 . 10 Power 2 | . 1 1 . . . . . . Propulsion 9 | . 2 1 . . . . . 6 Utility 4 | . . . . . . 1 . 3 Weapon 4 | . 1 . . . . 2 . 1 Highest Loss Streak 9 | . 2 2 . . . 2 . 9 To Critical Strikes . | . . . . . . . . . Average Slot Usage (%) 98 | . 90 99 99 100 100 99 . 92 Engine 10 | . 12 10 11 11 11 9 . 6 Treads 1 | . 16 . . . . . . . Leg 31 | . 11 32 32 33 33 36 . 34 Device 7 | . . 11 11 11 . 9 . 6 Storage 11 | . 19 11 11 11 11 9 . 7 Processor 9 | . . 10 11 11 11 9 . 7 Protection 2 | . . . . . 11 3 . 6 Ballistic Gun 20 | . 21 20 21 22 22 17 . . Peak Build Rating 43 | 6 10 21 23 30 22 37 40 43 Average Rating 21 | 5 6 17 22 22 22 30 39 39 On Entrance 19 | . 6 8 21 23 22 22 37 40 Naked Turns . | . . . . . . . . . Heaviest Build 115 | 11 110 95 95 95 97 101 106 115 Greatest Support 70 | 40 40 30 30 30 30 60 70 70 Greatest Overweight (x) 27 | 2 8 3 4 3 3 2 1 27 Average Overweight (x) 2 | . 2 2 3 3 3 1 1 1 Largest Inventory Capacity 25 | 8 25 25 25 25 25 25 25 25 Average Capacity 24 | 7 23 25 25 25 25 25 25 25 Most Carried 25 | 4 10 18 25 25 25 25 23 25 Average Carried 20 | 2 7 13 24 24 24 24 22 23 Final Capacity 25 | 8 25 25 25 25 25 25 25 25 Final Carried 25 | 4 9 18 25 23 25 24 22 25 Class Distribution -------------------- 68% | Mutant 31% | Scavenger-Mutant Dominant Class ---------------- Mutant | -10/Materials Mutant | -9/Materials Mutant | -9/Mines Mutant | -9/Exiles Scavenger-Mutant | -8/Mines Scavenger-Mutant | -8/Materials Scavenger-Mutant | -7/Factory Scavenger-Mutant | -7/DSF Resources | -11 -10 -9 -9 -9 -8 -8 -7 -7 ----------- Run | Yrd Mat Mat Min Exi Min Mat Fac DSF Matter Collected 2119 | 203 342 547 86 . 74 697 . 170 Remotely . | . . . . . . . . . Salvage Created 3256 | . 686 763 247 . 74 1220 . 266 Parts 200 | . 45 45 14 . 14 70 . 12 Haulers Intercepted 3 | . . 1 . . . 2 . . Recyclers Shooed 2 | . . 1 . . . 1 . . Parts Field Recycled . | . . . . . . . . . Retrieved Matter . | . . . . . . . . . Parts Self-Destructed . | . . . . . . . . . Prevented . | . . . . . . . . . Kills | -11 -10 -9 -9 -9 -8 -8 -7 -7 ------- Run | Yrd Mat Mat Min Exi Min Mat Fac DSF Combat Hostiles Destroyed 58 | . 13 14 2 . . 21 . 8 Melee 2 | . . . . . . . . 2 Guns 50 | . 13 14 2 . . 21 . . Cannons 6 | . . . . . . . . 6 Classes Destroyed 14 | . 6 4 1 . . 1 . 2 Worker 6 | . . 2 . . 2 2 . . Builder 10 | . 3 2 2 . 2 1 . . Hauler 3 | . . 1 . . . 2 . . Recycler 4 | . 1 2 1 . . . . . Mechanic 1 | . . . . . . 1 . . Operator 2 | . 1 . . . . 1 . . Watcher 2 | . 1 1 . . . . . . Swarmer 15 | . 3 8 . . . 4 . . Grunt 33 | . 10 3 1 . 1 17 . 1 Brawler 1 | . . . 1 . . . . . Duelist 2 | . . 1 . . . . . 1 Sentry 4 | . . 2 . . . 1 . 1 Specialist 4 | . . . . . . . . 4 Programmer 1 | . . . . . . . . 1 Best Kill Streak 7 | . 7 6 2 . 3 4 . 5 Combat Bots Only 5 | . 3 4 2 . . 3 . 5 Max Kills in Single Turn 4 | . 1 1 1 . 4 2 . 2 Gunslinging 1 | . . . . . . 1 . . Exploded . | . . . . . . . . . Melee 1 | . . . . . . . . 1 Uniques/NPCs Destroyed . | . . . . . . . . . Combat | -11 -10 -9 -9 -9 -8 -8 -7 -7 -------- Run | Yrd Mat Mat Min Exi Min Mat Fac DSF Hostile Shots Fired 410 | . 99 52 4 . . 85 . 170 Missed 106 | . 33 16 2 . . 17 . 38 Damage Taken 3973 | . 831 413 60 . . 736 . 1933 Core 960 | . 138 36 10 . . 63 . 713 Absorbed by Shields 543 | . . . . . . 284 . 259 Core Remaining (%) 80 | 100 44 . . . 88 88 . . Volleys Fired 224 | . 74 50 6 . 3 71 . 20 Largest 2 | . 2 2 2 . 2 2 . 2 Hottest 96 | . 85 50 50 . 50 50 . 96 Shots Fired 444 | . 148 100 12 . 6 138 . 40 Gun 404 | . 148 100 12 . 6 138 . . Cannon 40 | . . . . . . . . 40 Launcher . | . . . . . . . . . Special . | . . . . . . . . . Kinetic 405 | . 109 100 12 . 6 138 . 40 Thermal 13 | . 13 . . . . . . . Explosive . | . . . . . . . . . Electromagnetic 26 | . 26 . . . . . . . Robot Hit Streak 19 | . 11 9 6 . 1 14 . 19 Robot Miss Streak 5 | . 5 4 1 . 1 4 . 3 Penetration Max . | . . . . . . . . . Secondary Targets 6 | . 1 1 . . . 4 . . Max Gunslinging Chain 1 | . 1 1 . . . 1 . . Shots Hit Robots 297 | . 87 65 8 . 1 100 . 36 Core Hits 132 | . 35 24 7 . 6 50 . 10 Critical Kills 3 | . 1 1 1 . . . . . Critical Parts Destroyed . | . . . . . . . . . Critical Strikes 6 | . 1 1 1 . . . . 3 Destroy 3 | . 1 1 1 . . . . . Blast 3 | . . . . . . . . 3 Melee Attacks 18 | . . 7 . . . 3 . 8 Impact . | . . . . . . . . . Slashing 11 | . . . . . . 3 . 8 Piercing . | . . . . . . . . . Sneak Attacks 9 | . . 7 . . . 2 . . Combat Hostiles . | . . . . . . . . . Follow-up Attacks . | . . . . . . . . . Damage Inflicted 5235 | 5 961 1042 168 . 199 1860 . 1000 Guns 3803 | . 916 1038 146 . 16 1687 . . Cannons 856 | . . . . . . . . 856 Explosions 181 | . 39 . . . 142 . . . Melee 287 | . . . . . . 143 . 144 Ramming 108 | 5 6 4 22 . 41 30 . . Kinetic 4323 | . 580 1038 146 . 16 1687 . 856 Thermal 286 | . 144 . . . 142 . . . Explosive . | . . . . . . . . . Electromagnetic 231 | . 231 . . . . . . . Impact . | . . . . . . . . . Slashing 287 | . . . . . . 143 . 144 Piercing . | . . . . . . . . . Highest Corruption . | . . . . . . . . . Average Corruption . | . . . . . . . . . Corruption Purged . | . . . . . . . . . Corruption Blocked . | . . . . . . . . . Overload Shots . | . . . . . . . . . Overflow Damage 8 | . 8 . . . . . . . Projectiles . | . . . . . . . . . Explosions 8 | . 8 . . . . . . . Melee . | . . . . . . . . . Knockbacks 13 | . . . . . 1 1 . 11 Impact 2 | . . . . . 1 1 . . Kinetic 10 | . . . . . . . . 10 Secondary 1 | . . . . . . . . 1 Self-Inflicted Damage . | . . . . . . . . . Shots . | . . . . . . . . . Rammed 4 | 2 2 . . . . . . . Targets Rammed 20 | 2 3 1 4 . 5 5 . . Kicked 15 | . . 1 4 . 5 5 . . Crushed 1 | . 1 . . . . . . . Highest Temperature 394 | . 394 15 12 . 12 32 . 1 Average Temperature 41 | . 85 4 6 . 9 10 . 1 Received Heat Transfer 1654 | . 378 48 12 . . 383 . 833 Effects 5 | . 5 . . . . . . . Shutdowns 1 | . 1 . . . . . . . Interference 2 | . 2 . . . . . . . Matter Decay 1 | . 1 . . . . . . . Damage (minor) 1 | . 1 . . . . . . . Siege Activations . | . . . . . . . . . Robots Corrupted . | . . . . . . . . . Combat Hostiles . | . . . . . . . . . Parts Fried . | . . . . . . . . . Impact Corruptions 1 | . . . . . . . . 1 Robots Melted . | . . . . . . . . . Combat Hostiles . | . . . . . . . . . Parts Melted . | . . . . . . . . . Heat Transferred 509 | . 309 . . . 200 . . . Parts Sabotaged . | . . . . . . . . . Parts Stolen . | . . . . . . . . . Parts Stripped . | . . . . . . . . . Power Chain Reactions 1 | . 1 . . . . . . . Alert | -11 -10 -9 -9 -9 -8 -8 -7 -7 ------- Run | Yrd Mat Mat Min Exi Min Mat Fac DSF Peak Influence 296 | . 174 223 108 . 271 296 95 254 Initial 95 | . . 28 43 . . . 95 69 Average 74 | . 78 100 27 . 53 108 95 131 Maximum Alert Level 1 | . . 1 . . 1 1 . 1 Low Security (%) 92 | 100 100 94 100 . 88 82 100 79 Level 1 7 | . . 5 . . 11 17 . 20 Level 2 . | . . . . . . . . . Level 3 . | . . . . . . . . . Level 4 . | . . . . . . . . . Level 5 . | . . . . . . . . . High Security . | . . . . . . . . . Max Security . | . . . . . . . . . Squads Dispatched 9 | . 3 . . . . 3 . 3 Investigation 2 | . 1 . . . . 1 . . Extermination . | . . . . . . . . . Reinforcement 7 | . 2 . . . . 2 . 3 Assault . | . . . . . . . . . Garrison . | . . . . . . . . . Intercept . | . . . . . . . . . Searches Triggered . | . . . . . . . . . Construction Impeded 1 | . . . . . . 1 . . Haulers Reinforced . | . . . . . . . . . Active Scanning Responses . | . . . . . . . . . Cargo Convoy Interrupts . | . . . . . . . . . Stealth | -11 -10 -9 -9 -9 -8 -8 -7 -7 --------- Run | Yrd Mat Mat Min Exi Min Mat Fac DSF Distress Signals 10 | . 1 1 . . 1 7 . . Communications Jammed . | . . . . . . . . . Distress Signals . | . . . . . . . . . Times Spotted 86 | . 17 19 2 . 3 34 . 11 Peak Tracking Total 6 | . 5 4 2 . 1 4 . 6 Tactical Retreats 6 | . . 1 . . . 3 . 2 Traps | -11 -10 -9 -9 -9 -8 -8 -7 -7 ------- Run | Yrd Mat Mat Min Exi Min Mat Fac DSF Traps Triggered 4 | . 1 . 2 . . 1 . . Indirectly . | . . . . . . . . . Trap Hack Attempts . | . . . . . . . . . Triggered . | . . . . . . . . . Disarmed . | . . . . . . . . . Reprogrammed . | . . . . . . . . . Reused . | . . . . . . . . . Traps Extracted . | . . . . . . . . . Installed . | . . . . . . . . . Triggered . | . . . . . . . . . Machines | -11 -10 -9 -9 -9 -8 -8 -7 -7 ---------- Run | Yrd Mat Mat Min Exi Min Mat Fac DSF Machines Disabled 18 | . 1 . . . 15 2 . . Max in Single Turn 15 | . 1 . . . 15 1 . . Machines Repaired . | . . . . . . . . . Machines Dismantled . | . . . . . . . . . Machines Sabotaged . | . . . . . . . . . Overloaded Fab Kills . | . . . . . . . . . Hacking | -11 -10 -9 -9 -9 -8 -8 -7 -7 --------- Run | Yrd Mat Mat Min Exi Min Mat Fac DSF Machines Accessed 10 | . . 3 1 4 . 1 1 . Terminals 4 | . . 3 . . . . 1 . Fabricators . | . . . . . . . . . Repair Stations . | . . . . . . . . . Recycling Units 1 | . . . . . . 1 . . Scanalyzers . | . . . . . . . . . Garrison Access . | . . . . . . . . . Total Hacks 62 | . . 8 1 49 . 3 1 . Successful 55 | . . 2 1 49 . 2 1 . Failed 7 | . . 6 . . . 1 . . Catastrophic 2 | . . 2 . . . . . . Database Lockouts . | . . . . . . . . . Manual 6 | . . 5 . 1 . . . . Terminals 9 | . . 8 . . . . 1 . Fabricators . | . . . . . . . . . Repair Stations . | . . . . . . . . . Recycling Units 3 | . . . . . . 3 . . Scanalyzers . | . . . . . . . . . Garrison Access . | . . . . . . . . . Terminal Hacks 53 | . . 2 1 49 . . 1 . Record 49 | . . . . 49 . . . . Open Door 1 | . . . 1 . . . . . Open DSF 1 | . . . . . . . 1 . Branch Access Points 1 | . . 1 . . . . . . Zone Layout 1 | . . 1 . . . . . . Fabricator Hacks . | . . . . . . . . . Repair Station Hacks . | . . . . . . . . . Recycling Unit Hacks 2 | . . . . . . 2 . . Report Inventory 1 | . . . . . . 1 . . Retrieve Components 1 | . . . . . . 1 . . Scanalyzer . | . . . . . . . . . Garrison Access Hacks . | . . . . . . . . . Unauthorized Hacks . | . . . . . . . . . Terminals . | . . . . . . . . . Fabricators . | . . . . . . . . . Repair Stations . | . . . . . . . . . Recycling Units . | . . . . . . . . . Scanalyzers . | . . . . . . . . . Garrison Access . | . . . . . . . . . Data Cores Recovered . | . . . . . . . . . Used . | . . . . . . . . . Hacking Detections 4 | . . 3 . . . 1 . . Full Trace Events 1 | . . 1 . . . . . . Feedback Events . | . . . . . . . . . Feedback Blocked . | . . . . . . . . . Robot Schematics Acquired . | . . . . . . . . . Robots Built . | . . . . . . . . . Authchips . | . . . . . . . . . Time . | . . . . . . . . . Total Robot Build Rating . | . . . . . . . . . Part Schematics Acquired . | . . . . . . . . . Parts Built . | . . . . . . . . . Authchips . | . . . . . . . . . Time . | . . . . . . . . . Total Part Build Rating . | . . . . . . . . . Parts Repaired . | . . . . . . . . . Time . | . . . . . . . . . Parts Recycled . | . . . . . . . . . Recycled Matter . | . . . . . . . . . Retrieved Matter . | . . . . . . . . . Retrieved Components 3 | . . . . . . 3 . . Parts Scanalyzed . | . . . . . . . . . Part Schematics Acquired . | . . . . . . . . . Parts Damaged . | . . . . . . . . . Bothacking | -11 -10 -9 -9 -9 -8 -8 -7 -7 ------------ Run | Yrd Mat Mat Min Exi Min Mat Fac DSF Used RIF Installer . | . . . . . . . . . Robots Hacked 2 | . . 2 . . . . . . Non-combat 2 | . . 2 . . . . . . Combat . | . . . . . . . . . Robot Hacks Applied 4 | . . 4 . . . . . . parse_system 2 | . . 2 . . . . . . no_distress 2 | . . 2 . . . . . . Relay Couplers Released . | . . . . . . . . . Fabnet Peak Effective % . | . . . . . . . . . Robots Rewired . | . . . . . . . . . Allies Hacked . | . . . . . . . . . Hacks Repelled . | . . . . . . . . . Allies | -11 -10 -9 -9 -9 -8 -8 -7 -7 -------- Run | Yrd Mat Mat Min Exi Min Mat Fac DSF Total Allies 4 | . . . 4 . . . . . Largest Group 4 | . . . 4 3 3 2 . . Highest-Rated Group 71 | . . . 71 40 40 32 . . Highest-Rated Ally 31 | . . . 31 16 16 16 . . Total Orders . | . . . . . . . . . Ally Attacks 17 | . . . . . 10 7 . . Total Damage 135 | . . . . . 105 30 . . Kills 4 | . . . . . 3 1 . . Allies Corrupted . | . . . . . . . . . Allies Melted . | . . . . . . . . . Intel | -11 -10 -9 -9 -9 -8 -8 -7 -7 ------- Run | Yrd Mat Mat Min Exi Min Mat Fac DSF Robot Analysis Total . | . . . . . . . . . Derelict Logs Recovered 2 | . . . 2 . . . . . Drone Launches . | . . . . . . . . . Drone Recoveries . | . . . . . . . . . Exploration | -11 -10 -9 -9 -9 -8 -8 -7 -7 ------------- Run | Yrd Mat Mat Min Exi Min Mat Fac DSF Turns Passed 10098 | 72 1101 1430 1439 2405 1914 1331 6 400 Spaces Moved 2697 | 41 277 386 419 728 401 337 3 105 Core 11 | 9 . . . . . . . 2 Treads 217 | 32 185 . . . . . . . Legs 2469 | . 92 386 419 728 401 337 3 103 Wheels . | . . . . . . . . . Hover . | . . . . . . . . . Flight . | . . . . . . . . . Fastest Speed 50 | 50 160 260 330 330 330 190 190 188 Average Speed 301 | 138 305 295 330 330 330 219 190 212 Slowest Speed 1400 | 160 680 330 400 330 330 260 190 1400 Overloaded Moves . | . . . . . . . . . Propulsion Burnouts . | . . . . . . . . . Robots Hopped . | . . . . . . . . . Cave-ins Triggered . | . . . . . . . . . Exploration Rate (%) 48 | 4 43 29 81 93 75 24 . 39 Regions Visited 8 Branch Regions 3 Pre-discovered Areas 1 | . . . . 1 . . . . Known Exits Taken 6 | . . 1 1 1 1 1 1 . Unknown Exits Taken 2 | 1 1 . . . . . . . Scrap Searched 4 | . . . 3 . 1 . . . Spaces Dug 1 | . . . . . . 1 . . Terrain Destroyed 34 | . 2 . . . 31 1 . . Melee 1 | . . . . . . 1 . . Projectile . | . . . . . . . . . AOE 33 | . 2 . . . 31 . . . Terrain Rammed . | . . . . . . . . . Walls Destroyed . | . . . . . . . . . Machines Disabled . | . . . . . . . . . Actions | -11 -10 -9 -9 -9 -8 -8 -7 -7 --------- Run | Yrd Mat Mat Min Exi Min Mat Fac DSF Total 4249 | 52 395 589 457 732 976 812 4 232 Wait 1137 | . 19 112 17 . 563 344 . 82 Move 2689 | 40 276 385 418 727 400 336 2 105 Hop . | . . . . . . . . . Pick Up 58 | 4 8 13 7 1 1 17 . 7 Fast Attach 15 | 6 3 2 2 . . . . 2 Attach 14 | . 3 3 . . . 5 2 1 Detach . | . . . . . . . . . Swap 36 | . 6 11 1 2 3 11 . 2 Drop 38 | . 3 5 2 2 1 20 . 5 Fire 224 | . 74 50 6 . 3 71 . 20 Melee 18 | . . 7 . . . 3 . 8 Ram . | . . . . . . . . . Kick 15 | . . 1 4 . 5 5 . . Crush 5 | 2 3 . . . . . . . Escape Stasis . | . . . . . . . . . Rewire . | . . . . . . . . . Trap . | . . . . . . . . . Miscellaneous . | . . . . . . . . . Route ------- -11/Scrapyard -10/Materials (discovered 3 exits: *Mat x2 / [*Min]) -9/Materials -9/Mines (discovered 3 exits: *Mat / *Exi / *Zio) -9/Exiles (discovered 2 exits: *Min x2) -8/Mines (discovered 2 exits: *Mat x2) -8/Materials (discovered 3 exits: *Fac x2 / *Sto) -7/Factory -7/DSF History --------- Turn | Location | Event 11 | -11/Scrapyard | Discovered new exit (range 15) 73 | -11/Scrapyard | Entered Materials 309 | -10/Materials | Build established: Mutant 314 | -10/Materials | Discovered new exit (range 5) 601 | -10/Materials | Discovered new exit (range 5) 1029 | -10/Materials | Core integrity fell below 50% 1100 | -10/Materials | Discovered new exit (range 9) 1174 | -10/Materials | Entered another Materials area 1174 | -9/Materials | Evolved 2 slots: Propulsion x1, Utility x1 1899 | -9/Materials | Identified exit to Mines 2604 | -9/Materials | Entered Mines 2627 | -9/Mines | Met a Derelict bent on vengeance 2776 | -9/Mines | Learned location of 2 exits from Materials 2827 | -9/Mines | Met a Derelict who couldn't figure out how to use a Trap Extractor 3133 | -9/Mines | Learned 8 Materials zone layouts 3198 | -9/Mines | Discovered new exit (range 12) 3231 | -9/Mines | Identified exit to Materials 3404 | -9/Mines | Assisted by bots powering up and referring to "LRC-V3" 3625 | -9/Mines | A Derelict revealed a hidden shortcut to a safe place 3634 | -9/Mines | Identified exit to Zion 3749 | -9/Mines | Received a Mining Laser from a helpful Derelict 4023 | -9/Mines | Deemed a non-threat by the Exiles lab entrance 4026 | -9/Mines | Discovered new exit (range 5) 4040 | -9/Mines | Identified exit to Exiles 4043 | -9/Mines | Entered Exiles 4043 | -9/Exiles | Accompanied by 3 allies 4126 | -9/Exiles | Discovered new exit (range 15) 4202 | -9/Exiles | Identified exit to Mines 4298 | -9/Exiles | Met 8R-AWN 4367 | -9/Exiles | Met EX-HEX 4562 | -9/Exiles | Met EX-DEC 4642 | -9/Exiles | Visited The Gauntlet 5175 | -9/Exiles | Learned location of Zion (-7) 5390 | -9/Exiles | Discovered exit to Mines (range 14) 5684 | -9/Exiles | Met EX-BIN 5974 | -9/Exiles | Aligned with FarCom system 5977 | -9/Exiles | Given EX-Vault access code 6080 | -9/Exiles | Opened EX-Vault 6097 | -9/Exiles | Found Prototype Device 6170 | -9/Exiles | Warned to stay clear of 0b10 Research branches 6239 | -9/Exiles | Identified Trap Reconfigurator 6448 | -9/Exiles | Entered Mines 6448 | -8/Mines | Accompanied by 3 allies 6748 | -8/Mines | Build established: Scavenger-Mutant 7490 | -8/Mines | Discovered exit to Materials (range 6) 8335 | -8/Mines | Discovered exit to Materials (range 8) 8362 | -8/Mines | Entered Materials 8362 | -8/Materials | Accompanied by 2 allies 8362 | -8/Materials | Evolved 2 slots: Propulsion x1, Utility x1 8363 | -8/Materials | Identified exit to Factory 8363 | -8/Materials | Identified exit to Storage 9487 | -8/Materials | Build established: Mutant 9693 | -8/Materials | Entered Factory 9693 | -7/Factory | Evolved 2 slots: Propulsion x1, Utility x1 9699 | -7/Factory | Identified exit to DSF 9699 | -7/Factory | Entered DSF 9731 | -7/DSF | Additional patrols routed to DSF 9950 | -7/DSF | Build established: Scavenger-Mutant 10076 | -7/DSF | Core integrity fell below 50% 10090 | -7/DSF | Core integrity fell below 20% 10098 | -7/DSF | Lost 9 parts (5n3u1w) 10099 | -7/DSF | Destroyed by G-47 Trooper with Particle Gun Last Messages --------------- G-47 Trooper knocked back. Slug penetrates G-47 Trooper. Deuterium Engine severed. G-47 Trooper knocked back. Carbon-fiber Leg destroyed. Aluminum Leg destroyed. Hacking Suite destroyed. Critical hit (Burn: +37). Hrd. Medium Armor Plating destroyed. Critical hit (Burn: +37). ALERT: Suspicious intruders detected, dispatching Specialist reinforcements to area. Imp. Shield Generator destroyed. Critical hit (Burn: +37). VSS Leg destroyed. Carbon-fiber Leg destroyed. L-41 Fighter destroyed. Gauss Cannon destroyed. Critical hit (Burn: +37). G-47 Trooper destroyed. Map ----- +----------------------------------------------------+ | | | | | | | | | | | | | | | | | | | | | | | | | | | | | | | | | ?????????????????????????????????????????????? | | ?????????????????????????????????????????????? | | ?????????????????????????????????????????????? | | ?????????????????????????????????????????????? | | ?????????????????????????????????#""?????????? | | ????????????????????###??????????#"#?????????? | | ????????????????#####"###???????##"####??????? | | ????????????????# !%%%!!#########"""""#??????? | | ????????????????# !%%!!#%= # ##"""""#??????? | | ????????????????# ^^^!g[@%g ""##"#???? | | ????????????????# % !*%%[*! """""#???? | | ????????????????### =###[[[#[[## ""###????? | | ??????????????????# #?#[[[#[[### ###??????? | | ????????????????? !?########## ##???????? | | ????????????????# !????????# [[ ]#???????? | | ????????????????# !????????# [[ ]#???????? | | ????????????????### #????????### ##???????? | | ??????????????????= " !????????# #???????? | | ?????????????????=="%"!????????# #???????? | | ?????????????????== " !????????# #???????? | | ????????????????### #????????### ###??????? | | ??????????????????# ???????????# #??????? | | ?????????????????? ???????????# !!#??????? | | ?????????????????? ????????? #??????? | | ?????????????????? H ?????? #??????? | | ??????????????????? ????x ^ #??????? | | ????????????????????????#x!!# ## ]]#??????? | | ????????????????????????#!??# ?# ]]#??????? | | ????????????????????????????###??######??????? | | ?????????????????????????????????????????????? | | ?????????????????????????????????????????????? | | ?????????????????????????????????????????????? | | ?????????????????????????????????????????????? | | ?????????????????????????????????????????????? | +----------------------------------------------------+ Best States ------------- Heat Dissipation 34 Energy Generation 14 Energy Capacity 280 Matter Stores 300 Matter Capacity 300 Sight Range 16 Robot Scan Range 14 Terrain Scan Density 10 Armor Coverage 225 Evasion (%) 40 Recoil Reduction 2 Offensive Hacking 10 Item Schematics ----------------- None Robot Schematics ------------------ None Fabricated ------------ Nothing Alien Tech Used ----------------- None Achievements -------------- None Challenges ------------ None Game ------ Seed SwordLobotomyDissipator Manual? 0 Play Time 00:54:43 Cumulative 15.3 hours Start 2024.08.30 @ 03:24:10 End 2024.08.30 @ 05:09:55 Sessions 1 Manual Loads 0 Difficulty Rogue Special Mode None Game No. 25 Rogue 25 Adventurer 0 Explorer 0 Win Type - Total 0 Types 0/0/0/0/0/0/0/0/0 Lore% 10 Gallery% 18 Achievement% 17 Wizard Run 0 Options --------- Layout 0 ASCII 0 Keyboard 0 Movement Arrows Keybinds 0 Fullscreen 1 Font 18/Cog Map View 76x50 Zoom Use 0% Tactical HUD 0 Map Filters NONE Filters NONE Steam 1 RUN: 9c74fc7a-1978-49c3-9cb0-caff549b1e34